lending/lending_fUSD_20260306
["ID","MTS","AMOUNT","RATE_DAILY","PERIOD"]
[407803947,1772812242213,-907.0,0.00020822,2]
[407803948,1772812242224,-500.0,0.00020822,2]
[407803949,1772812242234,-500.0,0.00020822,2]
[407803950,1772812242244,-500.0,0.00020822,2]
[407803951,1772812242254,-473.0,0.00020822,2]
[407803952,1772812242264,-502.0,0.00020822,2]
[407803953,1772812242275,-500.0,0.00020822,2]
[407803954,1772812242284,-500.0,0.00020822,2]
[407803955,1772812242295,-500.0,0.00020822,2]
[407803956,1772812242304,-471.0,0.00020822,2]
[407803957,1772812242314,-639.0,0.00020822,2]
[407803958,1772812242325,-189.44875125,0.00020828,2]
[407803959,1772812242335,-191.47,0.00020847,2]
[407803960,1772812242345,-557.78,0.00020897,2]
[407803961,1772812242355,-4000.0,0.00020906,2]
[407803962,1772812242365,-4609.0,0.00020946,2]
[407803963,1772812242375,-400.0,0.00021,2]
[407803964,1772812242385,-210.15822689,0.00021017,2]
[407803965,1772812242396,-500.0,0.00021068,2]
[407803966,1772812242406,-438.0,0.00021096,2]
[407803967,1772812242416,-500.0,0.00021096,2]
[407803968,1772812242426,-500.0,0.00021096,2]
[407803969,1772812242436,-500.0,0.00021096,2]
[407803970,1772812242445,-907.0,0.00021096,2]
[407803971,1772812242455,-500.0,0.00021096,2]
[407803972,1772812242466,-500.0,0.00021096,2]
[407803973,1772812242476,-500.0,0.00021096,2]
[407803974,1772812242486,-473.0,0.00021096,2]
[407803975,1772812242496,-502.0,0.00021096,2]
[407803976,1772812242507,-500.0,0.00021096,2]
[407803977,1772812242516,-500.0,0.00021096,2]
[407803978,1772812242526,-500.0,0.00021096,2]
[407803979,1772812242536,-471.0,0.00021096,2]
[407803980,1772812242547,-639.0,0.00021096,2]
[407803981,1772812242557,-900.0,0.00021179,2]
[407803982,1772812242568,-1600.0,0.00021254,2]
[407803983,1772812242579,-438.0,0.0002137,2]
[407803984,1772812242589,-500.0,0.0002137,2]
[407803985,1772812242599,-500.0,0.0002137,2]
[407803986,1772812242609,-500.0,0.0002137,2]
[407803987,1772812242620,-907.0,0.0002137,2]
[407803988,1772812242631,-500.0,0.0002137,2]
[407803989,1772812242641,-500.0,0.0002137,2]
[407803990,1772812242651,-500.0,0.0002137,2]
[407803991,1772812242660,-473.0,0.0002137,2]
[407803992,1772812242670,-502.0,0.0002137,2]
[407803993,1772812242679,-500.0,0.0002137,2]
[407803994,1772812242689,-500.0,0.0002137,2]
[407803995,1772812242699,-500.0,0.0002137,2]
[407803996,1772812242708,-471.0,0.0002137,2]
[407803997,1772812242719,-639.0,0.0002137,2]
[407803998,1772812242728,-162.0,0.0002142,120]
[407803999,1772812242738,-201.6,0.0002145,2]
[407804000,1772812242749,-310.46,0.0002145,2]
[407804002,1772812242758,-1000.0,0.00021572,2]
[407804003,1772812242768,-8246.514697,0.00021599,7]
[407804004,1772812242778,-15921.260514,0.00021599,7]
[407804006,1772812242788,-172.74325605,0.000216,7]
[407804009,1772812242799,-438.0,0.00021644,2]
[407804010,1772812242809,-500.0,0.00021644,2]
[407804012,1772812242819,-500.0,0.00021644,2]
[407804014,1772812242828,-500.0,0.00021644,2]
[407804016,1772812242839,-907.0,0.00021644,2]
[407804018,1772812242849,-500.0,0.00021644,2]
[407804020,1772812242861,-500.0,0.00021644,2]
[407804022,1772812242871,-500.0,0.00021644,2]
[407804023,1772812242880,-473.0,0.00021644,2]
[407804024,1772812242890,-502.0,0.00021644,2]
[407804025,1772812242901,-500.0,0.00021644,2]
[407804026,1772812242911,-500.0,0.00021644,2]
[407804027,1772812242922,-500.0,0.00021644,2]
[407804028,1772812242933,-471.0,0.00021644,2]
[407804029,1772812242942,-639.0,0.00021644,2]
[407804030,1772812242955,-191.47,0.00021649,2]
[407804031,1772812242965,-438.0,0.00021918,2]
[407804032,1772812242975,-500.0,0.00021918,2]
[407804035,1772812242985,-500.0,0.00021918,2]
[407804037,1772812242998,-500.0,0.00021918,2]
[407804038,1772812243009,-907.0,0.00021918,2]
[407804039,1772812243020,-500.0,0.00021918,2]
[407804040,1772812243032,-500.0,0.00021918,2]
[407804041,1772812243043,-500.0,0.00021918,2]
[407804042,1772812243054,-473.0,0.00021918,2]
[407804043,1772812243064,-502.0,0.00021918,2]
[407804044,1772812243074,-500.0,0.00021918,2]
[407804045,1772812243084,-500.0,0.00021918,2]
[407804046,1772812243094,-500.0,0.00021918,2]
[407804047,1772812243104,-471.0,0.00021918,2]
[407804048,1772812243114,-639.0,0.00021918,2]
[407804049,1772812243124,-5000.0,0.00021918,2]
[407804050,1772812243133,-160.0155615,0.00021918,2]
[407804051,1772812243147,-219.68,0.00021918,2]
[407804052,1772812243157,-1102.1,0.00022,30]
[407804053,1772812243167,-210.15822689,0.00022135,2]
[407804054,1772812243178,-438.0,0.00022192,2]
[407804055,1772812243190,-500.0,0.00022192,2]
[407804056,1772812243201,-500.0,0.00022192,2]
[407804057,1772812243212,-500.0,0.00022192,2]
[407804058,1772812243222,-907.0,0.00022192,2]
[407804059,1772812243233,-500.0,0.00022192,2]
[407804060,1772812243243,-500.0,0.00022192,2]
[407804061,1772812243255,-500.0,0.00022192,2]
[407804062,1772812243265,-473.0,0.00022192,2]
[407804063,1772812243276,-502.0,0.00022192,2]
[407804064,1772812243286,-500.0,0.00022192,2]
[407804065,1772812243296,-372.85597871,0.00022192,2]
[407804066,1772812243306,-297.13306399,0.00022192,2]
[407804067,1772812243316,-471.0,0.00022192,2]
[407804068,1772812243326,-639.0,0.00022192,2]
[407804069,1772812243336,-5037.7159459,0.00022199,2]
[407804070,1772812243345,-500.0,0.00022207,2]
[407804071,1772812243355,-500.0,0.00022247,2]
[407804072,1772812243365,-2476.96206955,0.0002235,9]
[407804073,1772812243375,-160.0,0.00022405,3]
[407804074,1772812243385,-438.0,0.00022466,2]
[407804075,1772812243396,-500.0,0.00022466,2]
[407804076,1772812243407,-500.0,0.00022466,2]
[407804077,1772812243418,-500.0,0.00022466,2]
[407804078,1772812243429,-907.0,0.00022466,2]
[407804079,1772812243440,-500.0,0.00022466,2]
[407804080,1772812243450,-500.0,0.00022466,2]
[407804081,1772812243460,-500.0,0.00022466,2]
[407804082,1772812243472,-473.0,0.00022466,2]
[407804083,1772812243482,-502.0,0.00022466,2]
[407804084,1772812243492,-235.08437359,0.00022466,2]
[407804086,1772812243502,-471.0,0.00022466,2]
[407804087,1772812243513,-639.0,0.00022466,2]
[407804088,1772812243523,-162.0,0.00022491,120]
[407804089,1772812243533,-150.0,0.00022509,2]
[407804090,1772812243543,-200.0,0.00022618,4]
[407804091,1772812243553,-1124.0663657,0.00022706,2]
[407804092,1772812243563,-438.0,0.0002274,2]
[407804093,1772812243573,-500.0,0.0002274,2]
[407804094,1772812243583,-554.63301169,0.0002274,2]
[407804095,1772812243593,-500.0,0.0002274,2]
[407804096,1772812243603,-907.0,0.0002274,2]
[407804097,1772812243612,-500.0,0.0002274,2]
[407804098,1772812243623,-500.0,0.0002274,2]
[407804099,1772812243633,-500.0,0.0002274,2]
[407804100,1772812243643,-473.0,0.0002274,2]
[407804101,1772812243652,-502.0,0.0002274,2]
[407804102,1772812243663,-471.0,0.0002274,2]
[407804103,1772812243673,-639.0,0.0002274,2]
[407804104,1772812243683,-4932.11,0.0002274,2]
[407804107,1772812243694,-500.0,0.00022773,2]
[407804109,1772812243705,-500.0,0.00022773,2]
[407804111,1772812243715,-500.0,0.00022773,2]
[407804113,1772812243725,-847.0,0.00022813,3]
[407804114,1772812243735,-500.0,0.00022815,2]
[407804115,1772812243745,-10437.0410422,0.00022854,2]
[407804116,1772812243754,-1478.9626838,0.00022872,2]
[407804117,1772812243765,-150.0,0.00022892,2]
[407804118,1772812243775,-150.0,0.00022892,2]
[407804119,1772812243785,-2000.0,0.000229,2]
[407804120,1772812243797,-38537.1521232,0.00022919,2]
[407804121,1772812243807,-160.0,0.00023,3]
[407804122,1772812243818,-450.0,0.00023,2]
[407804123,1772812243829,-160.0,0.00023,2]
[407804124,1772812243840,-438.0,0.00023014,2]
[407804125,1772812243851,-364.29337837,0.00023014,2]
[407804126,1772812243861,-500.0,0.00023014,2]
[407804127,1772812243872,-907.0,0.00023014,2]
[407804128,1772812243882,-500.0,0.00023014,2]
[407804129,1772812243892,-500.0,0.00023014,2]
[407804130,1772812243906,-500.0,0.00023014,2]
[407804131,1772812243917,-473.0,0.00023014,2]
[407804132,1772812243928,-502.0,0.00023014,2]
[407804133,1772812243938,-471.0,0.00023014,2]
[407804134,1772812243949,-639.0,0.00023014,2]
[407804135,1772812243962,-6453.0,0.0002304,2]
[407804136,1772812243972,-250.0,0.00023057,2]
[407804137,1772812243981,-150.0,0.00023166,2]
[407804138,1772812243992,-528.17,0.00023207,2]
[407804139,1772812244002,-210.15822689,0.00023252,2]
[407804140,1772812244012,-2181.01,0.00023262,2]
[407804141,1772812244022,-151.0,0.00023285,7]
[407804142,1772812244038,-438.0,0.00023288,2]
[407804143,1772812244050,-500.0,0.00023288,2]
[407804144,1772812244060,-907.0,0.00023288,2]
[407804145,1772812244070,-500.0,0.00023288,2]
[407804146,1772812244079,-500.0,0.00023288,2]
[407804147,1772812244089,-500.0,0.00023288,2]
[407804148,1772812244099,-473.0,0.00023288,2]
[407804149,1772812244109,-502.0,0.00023288,2]
[407804150,1772812244118,-471.0,0.00023288,2]
[407804151,1772812244128,-639.0,0.00023288,2]
[407804152,1772812244138,-1500.0,0.00023288,2]
[407804153,1772812244149,-1000.0,0.00023321,2]
[407804154,1772812244159,-1000.0,0.00023321,2]
[407804155,1772812244169,-1600.0,0.00023379,2]
[407804156,1772812244178,-200.0,0.0002344,2]
[407804157,1772812244188,-500.0,0.00023465,2]
[407804158,1772812244197,-2328.8186392,0.00023492,2]
[407804159,1772812244207,-330.0011805,0.00023514,2]
[407804160,1772812244217,-438.0,0.00023562,2]
[407804161,1772812244227,-500.0,0.00023562,2]
[407804162,1772812244237,-907.0,0.00023562,2]
[407804163,1772812244247,-500.0,0.00023562,2]
[407804164,1772812244257,-500.0,0.00023562,2]
[407804165,1772812244267,-473.0,0.00023562,2]
[407804166,1772812244280,-500.0,0.00023562,2]
[407804167,1772812244289,-502.0,0.00023562,2]
[407804168,1772812244299,-471.0,0.00023562,2]
[407804169,1772812244309,-639.0,0.00023562,2]
[407804170,1772812244319,-4338.0836676,0.00023579,2]
[407804171,1772812244329,-8598.8009249,0.00023586,2]
[407804172,1772812244339,-151.0,0.000236,2]
[407804173,1772812244349,-350.0,0.00023605,2]
[407804174,1772812244359,-162.0,0.00023616,120]
[407804175,1772812244368,-500.0,0.00023671,2]
[407804176,1772812244379,-1000.0,0.0002373,2]
[407804177,1772812244388,-160.0,0.00023745,3]
[407804178,1772812244398,-4358.41,0.00023804,2]
[407804179,1772812244408,-438.0,0.00023836,2]
[407804180,1772812244418,-500.0,0.00023836,2]
[407804181,1772812244428,-907.0,0.00023836,2]
[407804182,1772812244438,-500.0,0.00023836,2]
[407804183,1772812244447,-473.0,0.00023836,2]
[407804184,1772812244457,-500.0,0.00023836,2]
[407804185,1772812244467,-500.0,0.00023836,2]
[407804186,1772812244477,-502.0,0.00023836,2]
[407804187,1772812244487,-471.0,0.00023836,2]
[407804188,1772812244496,-639.0,0.00023836,2]
[407804189,1772812244507,-1500.0,0.00023868,2]
[407804190,1772812244516,-1046.47179689,0.00023868,2]
[407804191,1772812244527,-1829.513017,0.00023981,2]
[407804192,1772812244536,-160.0,0.00024,7]
[407804193,1772812244546,-438.0,0.0002411,2]
[407804194,1772812244556,-613.88026854,0.0002411,2]
[407804195,1772812244566,-907.0,0.0002411,2]
[407804196,1772812244576,-500.0,0.0002411,2]
[407804197,1772812244586,-473.0,0.0002411,2]
[407804198,1772812244596,-464.66534297,0.0002411,2]
[407804199,1772812244605,-500.0,0.0002411,2]
[407804200,1772812244615,-502.0,0.0002411,2]
[407804201,1772812244624,-471.0,0.0002411,2]
[407804202,1772812244634,-639.0,0.0002411,2]
[407804203,1772812244644,-450.0,0.00024153,2]
[407804204,1772812244654,-500.0,0.00024169,2]
[407804205,1772812244664,-449.62291708,0.00024203,12]
[407804206,1772812244674,-210.15822689,0.0002437,2]
[407804207,1772812244684,-438.0,0.00024384,2]
[407804208,1772812244694,-907.0,0.00024384,2]
[407804209,1772812244704,-187.58478105,0.00024384,2]
[407804210,1772812244715,-473.0,0.00024384,2]
[407804211,1772812244727,-495.0,0.00024384,2]
[407804212,1772812244737,-502.0,0.00024384,2]
[407804213,1772812244747,-471.0,0.00024384,2]
[407804214,1772812244759,-639.0,0.00024384,2]
[407804215,1772812244769,-847.0,0.00024385,3]
[407804216,1772812244783,-967.9573034,0.00024394,2]
[407804217,1772812244793,-758.41906242,0.00024416,2]
[407804218,1772812244840,-956.2086707,0.00024416,2]
[407804219,1772812245684,-500.0,0.00015303,2]
[407804220,1772812245695,-226.15101031,0.00015303,2]
[407804221,1772812245705,-370.49985447,0.00015303,2]
[407804222,1772812245715,-179.39145694,0.00015303,2]
[407804223,1772812245725,-441.32967753,0.00015303,2]
[407804224,1772812245736,-350.6026748,0.00015303,2]
[407804225,1772812245768,-149.3973252,0.00015303,2]
[407804228,1772812245779,-500.0,0.00015303,2]
[407804231,1772812245788,-606.67433704,0.00015303,2]
[407804234,1772812245799,-285.37226688,0.00024416,2]
[407804236,1772812245808,-160.94025167,0.0002463,2]
[407804239,1772812245818,-2000.0,0.00024657,2]
[407804241,1772812245827,-438.0,0.00024658,2]
[407804243,1772812245837,-907.0,0.00024658,2]
[407804244,1772812245847,-473.0,0.00024658,2]
[407804245,1772812245856,-502.0,0.00024658,2]
[407804246,1772812245867,-471.0,0.00024658,2]
[407804247,1772812245876,-639.0,0.00024658,2]
[407804248,1772812245887,-1000.0,0.00024658,2]
[407804249,1772812245898,-192.61,0.00024658,2]
[407804250,1772812245908,-150.0,0.00024658,2]
[407804251,1772812245918,-550.0,0.00024701,2]
[407804252,1772812245935,-2000.0,0.00024742,2]
[407804253,1772812245946,-2000.0,0.00024742,2]
[407804254,1772812245956,-2000.0,0.00024742,2]
[407804255,1772812245971,-2000.0,0.00024742,2]
[407804256,1772812245982,-2000.0,0.00024742,2]
[407804257,1772812245992,-2000.0,0.00024742,2]
[407804258,1772812246003,-2000.0,0.00024742,2]
[407804259,1772812246012,-2000.0,0.00024742,2]
[407804260,1772812246022,-2000.0,0.00024742,2]
[407804261,1772812246037,-2000.0,0.00024742,2]
[407804262,1772812246047,-2000.0,0.00024742,2]
[407804263,1772812246056,-2000.0,0.00024742,2]
[407804264,1772812246065,-2000.0,0.00024742,2]
[407804265,1772812246075,-2000.0,0.00024742,2]
[407804266,1772812246085,-2000.0,0.00024742,2]
[407804267,1772812246094,-2000.0,0.00024742,2]
[407804268,1772812246103,-1016.37353529,0.00024742,2]
[407804269,1772812246115,-540.16205524,0.00024742,2]
[407804270,1772812246233,-443.46440947,0.00024742,2]
[407804271,1772812246244,-1662.12337896,0.00024742,2]
[407804272,1772812246258,-337.87662104,0.00024742,2]
[407804273,1772812246268,-385.01888056,0.00024742,2]
[407804274,1772812246586,-151.0,0.00024416,2]
[407804275,1772812246596,-1614.98111944,0.00024742,2]
[407804276,1772812246605,-2000.0,0.00024742,2]
[407804277,1772812246614,-1360.77839097,0.00024742,2]
[407804278,1772812246636,-301.26432731,0.0002,5]
[407804279,1772812246646,-639.22160903,0.00024742,2]
[407804280,1772812246655,-2000.0,0.00024742,2]
[407804281,1772812246664,-2000.0,0.00024742,2]
[407804282,1772812246674,-2000.0,0.00024742,2]
[407804283,1772812246684,-2000.0,0.00024742,2]
[407804284,1772812246693,-2000.0,0.00024742,2]
[407804285,1772812246702,-1058.5055566,0.00024742,2]
[407804286,1772812247609,-941.4944434,0.00024742,2]
[407804287,1772812247619,-2000.0,0.00024742,2]
[407804288,1772812247628,-1648.04703843,0.00024742,2]
[407804289,1772812247646,-351.95296157,0.00024742,2]
[407804290,1772812247656,-2000.0,0.00024742,2]
[407804291,1772812247665,-2000.0,0.00024742,2]
[407804292,1772812247674,-2000.0,0.00024742,2]
[407804293,1772812247683,-2000.0,0.00024742,2]
[407804294,1772812247694,-2000.0,0.00024742,2]
[407804295,1772812247705,-2000.0,0.00024742,2]
[407804296,1772812247714,-2000.0,0.00024742,2]
[407804297,1772812247723,-201.6,0.0002475,30]
[407804298,1772812247735,-310.46,0.0002475,30]
[407804299,1772812247746,-607.0,0.00024755,2]
[407804300,1772812247756,-150.0,0.00024755,2]
[407804301,1772812247767,-156.0,0.00024755,2]
[407804302,1772812247777,-400.0,0.00024826,11]
[407804303,1772812247786,-408.2195324,0.0002487,2]
[407804304,1772812247795,-161.12335235,0.00024873,2]
[407804305,1772812247804,-500.0,0.00024894,2]
[407804306,1772812247816,-172.74325605,0.000249,3]
[407804307,1772812247826,-335941.92831327,0.000249,3]
[407804308,1772812247849,-92251.38648173,0.000249,3]
[407804309,1772812247859,-438.0,0.00024931,2]
[407804310,1772812247869,-907.0,0.00024931,2]
[407804311,1772812247880,-473.0,0.00024931,2]
[407804312,1772812247891,-502.0,0.00024931,2]
[407804313,1772812247902,-471.0,0.00024931,2]
[407804314,1772812247912,-639.0,0.00024931,2]
[407804315,1772812247922,-2000.0,0.00024933,2]
[407804316,1772812247931,-2000.0,0.00024933,2]
[407804317,1772812247942,-2000.0,0.00024933,2]
[407804318,1772812247959,-2000.0,0.00024933,2]
[407804319,1772812247970,-2000.0,0.00024933,2]
[407804320,1772812247980,-2000.0,0.00024933,2]
[407804321,1772812247991,-2000.0,0.00024933,2]
[407804322,1772812248002,-2000.0,0.00024933,2]
[407804323,1772812248012,-2000.0,0.00024933,2]
[407804324,1772812248022,-2000.0,0.00024933,2]
[407804325,1772812248033,-2000.0,0.00024933,2]
[407804326,1772812248044,-2000.0,0.00024933,2]
[407804327,1772812248056,-2000.0,0.00024933,2]
[407804328,1772812248067,-2000.0,0.00024933,2]
[407804329,1772812248076,-2000.0,0.00024933,2]
[407804330,1772812248087,-2000.0,0.00024933,2]
[407804331,1772812248099,-2000.0,0.00024933,2]
[407804332,1772812248108,-2000.0,0.00024933,2]
[407804333,1772812248118,-2000.0,0.00024933,2]
[407804334,1772812248128,-2000.0,0.00024933,2]
[407804335,1772812248138,-2000.0,0.00024933,2]
[407804336,1772812248147,-78.61351823,0.00024933,2]
[407804337,1772812248159,-1921.38648177,0.00024933,2]
[407804338,1772812248168,-2000.0,0.00024933,2]
[407804339,1772812248177,-2000.0,0.00024933,2]
[407804340,1772812248187,-2000.0,0.00024933,2]
[407804341,1772812248196,-2000.0,0.00024933,2]
[407804342,1772812248206,-2000.0,0.00024933,2]
[407804343,1772812248216,-527.87464689,0.00024964,2]
[407804344,1772812248226,-1000.0,0.0002497,7]
[407804345,1772812248236,-500.0,0.00024973,2]
[407804346,1772812248246,-1621.47287321,0.00025,30]
[407804347,1772812248256,-2001.69978474,0.00025,2]
[407804348,1772812248265,-160.0,0.00025,30]
[407804349,1772812248275,-500.0,0.00025,2]
[407804350,1772812248289,-160.0,0.00025008,3]
[407804351,1772812248301,-712.0,0.00025023,2]
[407804352,1772812248310,-150.0,0.00025023,2]
[407804353,1772812248321,-261.0,0.00025023,2]
[407804354,1772812248331,-274.7738026,0.0002503,2]
[407804355,1772812248341,-986.0,0.00025057,10]
[407804356,1772812248350,-2000.0,0.0002511,2]
[407804357,1772812248364,-2000.0,0.0002511,2]
[407804358,1772812248373,-2000.0,0.0002511,2]
[407804359,1772812248383,-2000.0,0.0002511,2]
[407804360,1772812248393,-2000.0,0.0002511,2]
[407804361,1772812248403,-2000.0,0.0002511,2]
[407804362,1772812248412,-2000.0,0.0002511,2]
[407804363,1772812248422,-2000.0,0.0002511,2]
[407804364,1772812248432,-2000.0,0.0002511,2]
[407804365,1772812248441,-438.0,0.00025205,2]
[407804366,1772812248451,-907.0,0.00025205,2]
[407804367,1772812248460,-473.0,0.00025205,2]
[407804368,1772812248470,-502.0,0.00025205,2]
[407804369,1772812248479,-471.0,0.00025205,2]
[407804370,1772812248489,-639.0,0.00025205,2]
[407804371,1772812248498,-650.0,0.00025249,2]
[407804372,1772812248508,-572.4,0.00025293,30]
[407804373,1772812248517,-2314.0,0.00025344,2]
[407804374,1772812248526,-571.0,0.00025387,10]
[407804375,1772812248536,-438.0,0.00025479,2]
[407804376,1772812248546,-907.0,0.00025479,2]
[407804377,1772812248555,-473.0,0.00025479,2]
[407804378,1772812248564,-502.0,0.00025479,2]
[407804379,1772812248573,-471.0,0.00025479,2]
[407804380,1772812248583,-639.0,0.00025479,2]
[407804381,1772812248592,-210.15822689,0.00025487,2]
[407804382,1772812248601,-1600.0,0.00025504,120]
[407804383,1772812248611,-441.81,0.00025507,2]
[407804384,1772812248620,-9000.0,0.00025587,2]
[407804385,1772812248629,-1499.71757192,0.00025587,2]
[407804386,1772812248638,-3000.0,0.00025587,2]
[407804387,1772812248647,-252.67365585,0.00025587,2]
[407804388,1772812248656,-721.12765535,0.00025587,2]
[407804389,1772812248666,-250.0,0.00025587,2]
[407804390,1772812248675,-2500.0,0.00025587,2]
[407804391,1772812248684,-3000.0,0.00025587,2]
[407804392,1772812248693,-250.0,0.00025587,2]
[407804393,1772812248702,-2500.0,0.00025587,2]
[407804394,1772812248712,-3000.0,0.00025587,2]
[407804395,1772812248720,-250.0,0.00025587,2]
[407804396,1772812248730,-2500.0,0.00025587,2]
[407804397,1772812248739,-3000.0,0.00025587,2]
[407804398,1772812248751,-250.0,0.00025587,2]
[407804399,1772812248760,-2500.0,0.00025587,2]
[407804400,1772812248769,-250.0,0.00025587,2]
[407804401,1772812248782,-2500.0,0.00025587,2]
[407804402,1772812248792,-3000.0,0.00025587,2]
[407804403,1772812248802,-250.0,0.00025587,2]
[407804404,1772812248811,-2500.0,0.00025587,2]
[407804405,1772812248821,-3000.0,0.00025587,2]
[407804406,1772812248830,-1000.0,0.00025587,2]
[407804407,1772812248839,-250.0,0.00025587,2]
[407804408,1772812248849,-470.90530278,0.00025587,2]
[407804409,1772812248861,-316.1305,0.00025587,2]
[407804410,1772812248872,-1712.96419722,0.00025587,2]
[407804411,1772812248882,-1139.59925828,0.00025587,2]
[407804412,1772812248893,-1860.40074172,0.00025587,2]
[407804413,1772812248902,-1000.0,0.00025587,2]
[407804414,1772812248912,-250.0,0.00025587,2]
[407804415,1772812248921,-2382.53884828,0.00025587,2]
[407804416,1772812248934,-117.46115172,0.00025587,2]
[407804417,1772812248943,-1047.52536828,0.00025587,2]
[407804418,1772812248965,-1952.47463172,0.00025587,2]
[407804419,1772812248974,-1000.0,0.00025587,2]
[407804420,1772812248983,-250.0,0.00025587,2]
[407804421,1772812248995,-2500.0,0.00025587,2]
[407804422,1772812249005,-3000.0,0.00025587,2]
[407804423,1772812249016,-13.04042616,0.00025587,2]
[407804424,1772812249028,-371.0985,0.00025587,2]
[407804425,1772812249042,-315.91,0.00025587,2]
[407804426,1772812249059,-181.24,0.00021918,2]
[407804427,1772812249068,-299.95107384,0.00025587,2]
[407804428,1772812249077,-2500.0,0.00025587,2]
[407804429,1772812249086,-250.0,0.00025587,2]
[407804430,1772812249095,-3000.0,0.00025587,2]
[407804431,1772812249105,-1000.0,0.00025587,2]
[407804432,1772812249114,-2500.0,0.00025587,2]
[407804433,1772812249123,-250.0,0.00025587,2]
[407804434,1772812249132,-1043.77412616,0.00025587,2]
[407804435,1772812249144,-1956.22587384,0.00025587,2]
[407804436,1772812249153,-1000.0,0.00025587,2]
[407804437,1772812249162,-1000.0,0.00025587,2]
[407804438,1772812249171,-578.20924308,0.00025587,2]
[407804439,1772812249181,-1000.0,0.00025587,2]
[407804440,1772812249190,-250.0,0.00025587,2]
[407804441,1772812249199,-271.67882507,0.00025587,2]
[407804442,1772812249208,-1000.0,0.00025587,2]
[407804443,1772812249218,-250.0,0.00025587,2]
[407804444,1772812249226,-1000.0,0.00025587,2]
[407804445,1772812249235,-250.0,0.00025587,2]
[407804446,1772812249245,-1000.0,0.00025587,2]
[407804447,1772812249253,-250.0,0.00025587,2]
[407804448,1772812249263,-174.61919141,0.00025587,2]
[407804449,1772812249272,-250.0,0.00025587,2]
[407804450,1772812249281,-250.0,0.00025587,2]
[407804451,1772812249289,-250.0,0.00025587,2]
[407804452,1772812249298,-250.0,0.00025587,2]
[407804453,1772812249308,-250.0,0.00025587,2]
[407804454,1772812249318,-250.0,0.00025587,2]
[407804455,1772812249327,-250.0,0.00025587,2]
[407804456,1772812249337,-250.0,0.00025587,2]
[407804457,1772812249346,-250.0,0.00025587,2]
[407804458,1772812249355,-250.0,0.00025587,2]
[407804459,1772812249374,-250.0,0.00025587,2]
[407804460,1772812249383,-151.0,0.00025587,2]
[407804461,1772812249393,-1000.0,0.00025587,2]
[407804462,1772812249403,-250.0,0.00025587,2]
[407804463,1772812249412,-25.1267666,0.00025587,2]
[407804464,1772812249424,-396.7,0.00025587,2]
[407804465,1772812249519,-578.1732334,0.00025587,2]
[407804466,1772812249531,-250.0,0.00025587,2]
[407804467,1772812249542,-766.9267666,0.00025587,2]
[407804468,1772812291451,517.0,0.0001342,2]
[407804469,1772812336011,243.96235277,0.0001142,2]
[407804470,1772812474392,543.0,0.0001342,2]
[407804471,1772812602151,-1088.47420043,0.00014207,2]
[407804472,1772812602181,-221.1046662,0.00014207,2]
[407804473,1772812602214,-182.46291191,0.00014207,2]
[407804474,1772812622111,300.0,0.00014206,2]
[407804475,1772812623281,154.0,0.00014206,2]
[407804476,1772812647039,-7265.50244542,0.00014207,2]